bitfinex/quotes_ETHUSD_20241122
["timestamp","ask_amount","ask_price","bid_price","bid_amount"]
[1732311126232,0.55,3278.3,3277.5,1.0556]
[1732311126432,0.55,3278.1,3277.5,1.0556]
[1732311126635,0.55,3277.9,3277.5,1.0556]
[1732311128313,0.9916,3278.2,3277.3,0.00644458]
[1732311128512,0.9916,3278.0,3277.3,0.00644458]
[1732311128812,0.9916,3277.7,3277.3,0.00644458]
[1732311129132,0.55,3277.5,3277.3,0.00644458]
[1732311129536,0.83377714,3277.4,3277.3,0.00644458]
[1732311132823,0.28332718,3277.4,3277.3,0.00644458]
[1732311133219,0.83332718,3277.4,3277.3,0.00644458]
[1732311133436,0.9870759,3277.4,3277.3,0.00644458]
[1732311135016,0.28332718,3277.4,3277.3,0.00644458]
[1732311135223,0.9645,3278.1,3277.3,1.05384458]
[1732311135421,0.28302618,3278.0,3277.9,0.002]
[1732311136646,0.83302618,3278.0,3277.9,0.002]
[1732311136841,1.01275557,3278.0,3277.9,0.002]
[1732311137161,0.72975262,3278.0,3277.9,0.002]
[1732311137323,1.0127503,3278.0,3277.9,0.002]
[1732311140660,1.01265004,3278.0,3277.9,0.002]
[1732311141071,0.00667314,3277.4,3277.3,0.00644458]
[1732311144327,1.06417314,3277.4,3277.3,0.00644458]
[1732311144561,1.61417314,3277.4,3277.3,0.00644458]
[1732311146566,1.89729393,3277.4,3277.3,0.00644458]
[1732311146947,1.61417314,3277.4,3277.3,0.00644458]
[1732311147274,2.05879325,3277.4,3277.3,0.00644458]
[1732311151681,1.00129325,3277.4,3277.3,0.00644458]
[1732311152072,1.0016642,3277.4,3277.3,0.00644458]
[1732311154602,2.0447642,3277.4,3277.3,0.00644458]
[1732311154800,2.1665172,3277.4,3277.3,0.00644458]
[1732311156858,0.55,3277.3,3277.1,0.0073]
[1732311157196,1.87667375,3277.2,3277.1,0.0073]
[1732311158804,3.10535526,3277.2,3277.1,0.0073]
[1732311158961,3.38938405,3277.2,3277.1,0.0073]
[1732311159397,1.87712879,3277.2,3277.1,0.0073]
[1732311159605,2.07768428,3277.2,3277.1,0.0073]
[1732311159979,1.79365549,3277.2,3277.1,0.0073]
[1732311160167,2.07754602,3277.2,3277.1,0.0073]
[1732311161209,0.48444602,3277.2,3277.1,0.0073]
[1732311161403,0.28389053,3277.2,3277.1,0.0073]
[1732311163078,0.83389053,3277.2,3277.1,0.0073]
[1732311171318,0.83389053,3277.2,3276.8,1.0123]
[1732311171319,0.55,3277.1,3276.8,0.3379411]
[1732311171490,0.28389053,3277.2,3276.8,0.3379411]
[1732311171491,0.55,3277.2,3276.8,0.3379411]
[1732311171683,0.55,3277.0,3276.8,0.23448612]
[1732311172100,0.83400656,3276.9,3276.8,0.23448612]
[1732311179225,0.83423569,3276.9,3276.8,0.23448612]
[1732311179686,0.28423569,3276.9,3276.8,0.23448612]
[1732311180986,0.83423569,3276.9,3276.8,0.23448612]
[1732311183231,0.55,3277.2,3276.8,0.23448612]
[1732311183533,0.55,3276.9,3276.8,0.23448612]
[1732311183736,0.83442329,3276.9,3276.8,0.23448612]
[1732311185434,0.55,3276.8,3275.3,1.064]
[1732311185592,0.28442329,3276.7,3275.5,1.036]
[1732311185795,0.55,3277.0,3275.5,1.036]
[1732311186110,0.55,3276.8,3275.5,1.036]
[1732311186444,0.28439008,3276.7,3275.5,1.036]
[1732311186629,0.28439008,3276.6,3275.5,1.036]
[1732311186800,0.28439008,3276.5,3275.5,1.036]
[1732311187144,0.55,3276.3,3275.5,1.036]
[1732311187311,0.28439008,3276.2,3275.5,1.036]
[1732311187517,0.28439008,3276.1,3275.5,1.036]
[1732311187825,0.28439008,3276.0,3275.5,1.036]
[1732311187996,1.5599,3277.3,3275.1,1.0449]
[1732311188194,0.55,3277.1,3275.3,1.0449]
[1732311188419,0.55,3277.1,3275.4,1.07542486]
[1732311188420,0.55,3276.9,3275.4,1.07542486]
[1732311188628,0.55,3276.7,3275.6,1.0449]
[1732311188814,0.55,3276.5,3275.6,1.0449]
[1732311189131,0.28438082,3276.4,3275.6,1.0449]
[1732311189318,0.28438082,3276.3,3275.6,1.0449]
[1732311189629,0.28438082,3276.2,3275.6,1.0449]
[1732311189969,0.55,3276.7,3275.6,1.0449]
[1732311189970,0.28438082,3276.1,3275.6,1.0449]
[1732311190133,1.0099,3276.9,3275.6,1.0449]
[1732311190134,0.55,3276.8,3275.6,1.0449]
[1732311190442,0.55,3276.6,3275.6,1.0449]
[1732311190734,0.28456315,3276.5,3275.6,1.0449]
[1732311191026,0.28456315,3276.4,3275.6,1.0449]
[1732311191234,0.55,3276.8,3275.6,1.0449]
[1732311191235,0.28456315,3276.3,3275.6,1.0449]
[1732311191439,0.28456315,3276.2,3275.6,1.0449]
[1732311191624,0.55,3276.8,3275.6,1.0449]
[1732311191625,0.28456315,3276.1,3275.6,1.0449]
[1732311192028,0.28456315,3276.0,3275.6,1.0449]
[1732311192233,0.55,3276.6,3275.6,1.0449]
[1732311192408,0.28443314,3276.5,3275.6,1.0449]
[1732311192610,0.28443314,3276.4,3275.7,1.09302482]
[1732311192919,0.28443314,3276.3,3275.7,1.0625]
[1732311193247,0.9813,3277.2,3275.3,0.03052176]
[1732311193248,1.51225526,3277.2,3275.9,1.0625]
[1732311193456,0.2844565,3277.1,3275.9,1.0625]
[1732311193745,0.2844565,3277.0,3275.9,1.0625]
[1732311194111,0.2844565,3276.9,3275.9,1.0625]
[1732311194308,0.2844565,3276.8,3275.9,1.0625]
[1732311194610,1.10972614,3277.4,3275.9,1.0625]
[1732311194611,0.2844565,3276.7,3275.9,1.0625]
[1732311194815,1.10972614,3277.4,3275.9,1.0625]
[1732311194816,0.2844565,3276.6,3275.9,1.0625]
[1732311195116,0.55,3277.3,3276.1,1.0219]
[1732311195311,0.28447225,3277.2,3276.1,1.0219]
[1732311195548,0.28447225,3277.1,3276.1,1.0219]
[1732311195732,0.28447225,3277.0,3276.1,1.0219]
[1732311196052,0.28447225,3276.9,3276.1,1.0219]
[1732311196208,0.28447225,3276.8,3276.1,1.0219]
[1732311196411,0.28447225,3276.7,3276.1,1.0219]
[1732311196746,0.12842614,3277.4,3276.2,1.05241858]
[1732311197045,0.28447665,3277.3,3276.2,1.05241858]
[1732311197347,0.28447665,3277.2,3276.2,1.05241858]
[1732311197508,0.28447665,3277.1,3276.2,1.05241858]
[1732311197710,0.28447665,3277.0,3276.2,1.05241858]
[1732311197916,0.12842614,3277.4,3276.2,1.05241858]
[1732311198125,0.28424071,3277.3,3276.2,1.05241858]
[1732311198322,0.28424071,3277.2,3276.2,1.05241858]
[1732311198522,0.28424071,3277.1,3276.2,1.05241858]
[1732311198764,0.28424071,3277.3,3276.2,1.05241858]
[1732311198910,0.12842614,3277.4,3276.2,1.05241858]
[1732311198911,0.28416298,3277.2,3276.2,1.05241858]
[1732311199251,0.28416298,3277.1,3276.2,1.05241858]
[1732311199431,0.28416298,3277.3,3276.2,1.05241858]
[1732311199635,0.28408928,3277.2,3276.2,1.0219]
[1732311199853,0.12842614,3277.4,3276.2,1.0219]
[1732311200013,0.28408094,3277.3,3276.2,1.0219]
[1732311200213,0.28408094,3277.2,3276.2,1.0219]
[1732311200414,0.12842614,3277.4,3276.2,1.0219]
[1732311200612,0.28404824,3277.3,3276.2,1.0219]
[1732311200832,0.28404824,3277.2,3276.2,1.0219]
[1732311201033,0.28404824,3277.3,3276.2,1.0219]
[1732311201234,0.28404824,3277.2,3276.4,1.0219]
[1732311201550,0.12842614,3277.4,3276.4,1.0219]
[1732311201748,0.28402985,3277.3,3276.4,1.0219]
[1732311202152,0.00667314,3277.4,3276.6,1.0446]
[1732311203015,0.00667314,3277.4,3276.6,1.07511134]
[1732311204047,0.00667314,3277.4,3276.6,1.0446]
[1732311206632,0.00667314,3277.4,3276.7,0.99781136]
[1732311206824,0.00667314,3277.4,3276.7,0.9673]
[1732311208735,0.29042746,3277.4,3276.7,0.9673]
[1732311210862,1.89235432,3277.3,3276.7,0.9673]
[1732311211057,0.47365707,3277.2,3276.7,0.9673]
[1732311211248,0.83375432,3277.1,3276.4,0.9888]
[1732311211562,1.0349,3276.9,3275.0,0.9888]
[1732311211866,1.0349,3276.9,3275.2,0.9888]
[1732311211867,0.28375432,3276.8,3275.2,0.9888]
[1732311212166,0.28375432,3276.8,3275.4,0.9927]
[1732311213568,0.83375432,3276.7,3275.4,0.9927]
[1732311213754,0.55,3276.5,3275.4,0.9927]
[1732311213953,0.28375432,3276.4,3275.4,0.9927]
[1732311214159,0.55,3276.7,3275.4,0.9927]
[1732311214358,0.55,3276.5,3275.4,0.9927]
[1732311214663,0.55,3276.7,3275.4,0.9927]
[1732311215015,0.55,3276.5,3275.4,0.9927]
[1732311215265,0.55,3276.6,3275.4,0.9927]
[1732311215447,0.28345946,3276.5,3275.4,0.9927]
[1732311215849,0.28345946,3276.5,3275.5,0.99552464]
[1732311216055,0.55,3277.0,3275.5,0.965]
[1732311216229,0.55,3276.8,3275.5,0.965]
[1732311216654,0.28344551,3276.7,3275.5,0.965]
[1732311220778,0.28344551,3276.7,3275.6,1.05922167]
[1732311220945,0.55,3277.2,3275.6,1.05922167]
[1732311221144,0.55,3277.0,3275.6,1.05922167]
[1732311221383,0.28334579,3276.9,3275.6,1.05922167]
[1732311222068,0.55,3277.0,3275.6,1.05922167]
[1732311222295,0.15712,3277.1,3275.6,1.05922167]
[1732311222516,0.28339485,3277.0,3275.6,1.05922167]
[1732311223008,0.00667314,3277.4,3275.6,1.06566625]
[1732311223499,0.00667314,3277.4,3275.8,1.0635]
[1732311223705,0.29011779,3277.4,3276.0,1.0635]
[1732311223861,0.00667314,3277.4,3276.2,1.0635]
[1732311224066,0.00667314,3277.4,3276.3,1.09401285]
[1732311225396,0.55,3277.3,3276.3,1.0635]
[1732311225575,0.43779676,3277.2,3276.3,1.0635]
[1732311225905,0.15440731,3277.2,3276.3,1.0635]
[1732311226198,0.00667314,3277.4,3276.3,1.0635]
[1732311226405,0.29006867,3277.4,3276.3,1.0635]
[1732311227115,0.00667314,3277.4,3276.5,1.0594]
[1732311229907,0.00667314,3277.4,3276.6,1.08141261]
[1732311230812,0.00667314,3277.4,3276.6,1.08785719]
[1732311230970,0.00667314,3277.4,3276.7,0.00644458]
[1732311231168,0.00667314,3277.4,3276.9,1.04644458]
[1732311231511,0.00667314,3277.4,3277.1,1.04644458]
[1732311231710,0.00667314,3277.4,3277.3,1.04]
[1732311233429,0.00667314,3277.4,3277.3,1.07050397]
[1732311242264,0.00667314,3277.4,3277.3,1.56820397]
[1732311242560,0.00667314,3277.4,3277.3,1.72666882]
[1732311244083,0.00667314,3277.4,3277.3,1.73666882]
[1732311247372,1.0277,3279.5,3278.0,0.00644458]
[1732311247576,5.37,3280.8,3278.0,0.00644458]
[1732311247577,1.04,3279.4,3278.4,0.00644458]
[1732311247797,1.0277,3279.9,3278.5,0.996]
[1732311248102,1.0277,3279.9,3278.7,0.996]
[1732311248411,0.121625,3279.8,3278.9,0.996]
[1732311248708,0.121625,3279.8,3279.0,0.03048858]
[1732311249413,0.121625,3279.8,3278.9,0.996]
[1732311250403,0.121625,3279.8,3279.0,0.03048848]
[1732311250978,0.121625,3279.8,3278.9,0.996]
[1732311251164,0.121625,3279.8,3279.0,0.03048936]
[1732311251886,0.121625,3279.8,3279.1,0.968]
[1732311252276,0.121625,3279.8,3279.1,0.99848846]
[1732311253283,0.121625,3279.8,3279.1,0.968]
[1732311257087,0.121625,3279.8,3279.3,1.0024]
[1732311257285,0.121625,3279.8,3279.0,0.00644458]
[1732311257286,0.121625,3279.8,3279.5,1.0024]
[1732311257477,0.121625,3279.8,3279.6,0.03048482]
[1732311257674,1.0528,3280.4,3279.6,0.03048482]
[1732311258018,2.0552,3280.4,3279.6,0.03048482]
[1732311258308,2.26072,3280.4,3279.6,0.03048482]
[1732311258614,1.20792,3280.4,3279.7,0.9945]
[1732311258909,1.0024,3280.4,3279.8,0.03048388]
[1732311259278,1.0024,3280.4,3279.5,1.00094458]
[1732311259480,1.0024,3280.4,3279.7,0.9945]
[1732311259677,1.0216,3280.8,3279.9,0.9945]
[1732311259901,1.0216,3280.8,3280.0,0.0304799]
[1732311260083,0.9945,3280.7,3280.0,0.0304799]
[1732311260297,0.9945,3280.7,3280.1,0.03048041]
[1732311260515,0.9945,3280.7,3279.9,0.9945]
[1732311260516,0.9945,3280.7,3280.0,0.03047864]
[1732311260703,0.9945,3280.7,3279.9,1.02498]
[1732311262786,0.9932,3280.6,3279.9,0.9945]
[1732311269246,1.19197,3280.6,3279.8,0.00644458]
[1732311269661,0.9932,3280.4,3279.8,0.00644458]
[1732311269953,0.55,3280.3,3279.8,0.00644458]
[1732311273342,0.9932,3280.4,3279.8,0.00644458]
[1732311275669,0.9945,3280.7,3279.8,0.00644458]
[1732311275971,2.0428,3280.7,3279.8,0.03692754]
[1732311276267,2.0428,3280.7,3279.8,0.00644458]
[1732311277565,2.0428,3280.7,3279.8,0.03692712]
[1732311277788,2.0428,3280.7,3279.9,1.0499]
[1732311278066,1.0483,3280.7,3279.9,1.0499]
[1732311278275,1.0483,3280.7,3280.0,0.03048019]
[1732311279056,1.004144,3280.9,3279.9,1.0499]
[1732311279366,1.004144,3280.9,3280.0,0.03047945]
[1732311282693,1.0483,3281.0,3280.0,0.03047945]
[1732311283389,1.0483,3281.0,3280.1,1.0297]
[1732311287757,0.9999,3280.8,3280.1,1.0297]
[1732311287961,1.0499,3281.3,3279.8,0.00644458]
[1732311287962,0.83403762,3280.7,3279.8,0.00644458]
[1732311288273,0.55,3280.5,3279.8,0.00644458]
[1732311288656,1.33755637,3280.4,3279.8,0.00644458]
[1732311288857,0.28405637,3280.3,3279.8,0.00644458]
[1732311289072,1.33755637,3280.2,3279.8,0.00644458]
[1732311289308,1.0535,3280.2,3279.8,0.00644458]
[1732311289518,0.83400841,3280.1,3279.8,0.00644458]
[1732311289677,0.55,3279.9,3279.8,0.00644458]
[1732311289876,0.83400841,3279.9,3279.8,0.00644458]
[1732311291888,0.83380243,3279.9,3279.8,0.00644458]
[1732311292383,0.55,3279.9,3279.8,0.00644458]
[1732311298226,1.0499,3281.3,3279.8,0.00644458]
[1732311298227,0.55,3280.1,3279.8,0.00644458]
[1732311298945,0.70788,3280.1,3279.8,0.00644458]
[1732311299146,0.55,3279.9,3279.8,0.00644458]
[1732311299302,1.80283663,3279.9,3279.8,0.00644458]
[1732311300831,1.5193,3279.9,3279.8,0.00644458]
[1732311301032,1.80283482,3279.9,3279.8,0.00644458]
[1732311301229,1.9831183,3279.9,3279.8,0.00644458]
[1732311301816,1.69958348,3279.9,3279.8,0.00644458]
[1732311302808,1.5193,3279.9,3279.8,0.00644458]
[1732311303348,1.80276093,3279.9,3279.8,0.00644458]
[1732311304664,1.80260954,3279.9,3279.8,0.00644458]
[1732311308544,1.80236567,3279.9,3279.8,0.00644458]
[1732311312556,1.5193,3279.9,3279.8,0.00644458]
[1732311312772,1.80204758,3279.9,3279.8,0.00644458]
[1732311312937,1.98225234,3279.9,3279.8,0.00644458]
[1732311313931,1.25204758,3279.9,3279.8,0.00644458]
[1732311314532,0.28274758,3279.9,3279.8,0.00644458]
[1732311314935,0.28274758,3280.0,3279.8,0.00644458]
[1732311315249,0.28274758,3279.9,3279.8,0.00644458]
[1732311315491,0.28274758,3280.0,3279.8,0.00644458]
[1732311315672,0.83274758,3279.9,3279.8,0.00644458]
[1732311316568,0.55,3279.9,3279.8,0.00644458]
[1732311316767,0.83328164,3279.9,3279.8,0.00644458]
[1732311317779,1.0225998,3279.9,3279.8,0.00644458]
[1732311317996,0.83328164,3279.9,3279.8,0.00644458]
[1732311319095,0.83328164,3279.9,3279.8,0.97724458]
[1732311319417,1.04,3280.7,3279.8,0.97724458]
[1732311319590,0.28350978,3280.6,3279.8,0.97724458]
[1732311319784,0.28350978,3280.5,3279.8,0.97724458]
[1732311319985,0.28350978,3280.4,3279.8,0.97724458]
[1732311320325,0.28350978,3280.3,3279.8,0.97724458]
[1732311320485,0.55,3280.2,3279.8,0.97724458]
[1732311320674,0.55,3280.0,3279.8,0.97724458]
[1732311320870,1.04,3280.7,3279.8,0.97724458]
[1732311321122,1.0499,3281.3,3279.8,0.97724458]
[1732311321123,0.28356044,3280.6,3279.8,0.97724458]
[1732311321316,0.28356044,3280.5,3279.8,0.97724458]
[1732311321627,0.28356044,3280.4,3279.8,0.97724458]
[1732311321784,0.2835801,3280.9,3279.8,0.97724458]
[1732311321985,0.28358052,3280.8,3279.8,0.97724458]
[1732311322181,0.28358052,3280.7,3279.8,0.97724458]
[1732311322392,0.55,3280.5,3279.8,0.97724458]
[1732311322621,0.55,3280.8,3279.8,0.97724458]
[1732311322881,0.55,3280.6,3279.8,0.97724458]
[1732311323018,0.28353803,3280.5,3279.8,0.97724458]
[1732311323212,0.55,3280.4,3279.8,0.97724458]
[1732311323532,0.55,3280.8,3279.8,0.97724458]
[1732311323711,0.55,3280.6,3279.8,0.97724458]
[1732311323916,0.55,3280.4,3279.8,0.97724458]
[1732311324120,0.55,3280.6,3279.8,0.97724458]
[1732311324428,0.55,3280.9,3279.8,0.97724458]
[1732311324730,0.55,3280.7,3279.8,0.97724458]
[1732311325134,0.55,3280.5,3279.8,0.97724458]
[1732311325925,0.28338094,3280.4,3279.8,0.97724458]
[1732311326129,0.55,3280.3,3279.8,0.97724458]
[1732311332440,0.55,3280.3,3279.9,0.08177185]
[1732311333063,0.55,3280.3,3280.0,1.0084]
[1732311333565,2.0604,3281.3,3280.2,1.0084]
[1732311333725,0.28335972,3281.2,3280.2,1.0084]
[1732311334932,0.55,3281.1,3280.2,1.0084]
[1732311335131,1.0499,3281.3,3280.3,1.07889669]
[1732311335438,0.28321268,3281.2,3280.3,0.9975]
[1732311336331,0.55,3281.1,3280.3,0.9975]
[1732311336570,0.55,3281.2,3280.5,1.0552]
[1732311336972,0.55,3281.2,3280.6,0.08134616]
[1732311338481,0.70999,3281.2,3280.6,0.08134616]
[1732311338852,0.55,3281.0,3280.6,0.08134616]
[1732311339100,0.70999,3281.2,3280.6,0.08134616]
[1732311339253,0.55,3281.0,3280.6,0.08134616]
[1732311339459,0.70999,3281.2,3280.6,0.08134616]
[1732311339757,0.55,3281.0,3280.6,0.08134616]
[1732311339979,0.55,3281.2,3280.6,0.08134616]
[1732311340182,0.55,3281.0,3280.6,0.08134616]
[1732311340862,0.55,3281.2,3280.6,0.08134616]
[1732311341070,0.55,3281.0,3280.6,0.08134616]
[1732311341792,0.55,3281.2,3280.6,0.08134616]
[1732311341981,0.55,3281.0,3280.6,0.08134616]
[1732311342163,0.55,3281.2,3280.7,0.986]
[1732311342358,0.55,3281.0,3280.7,1.06721252]
[1732311342565,0.55,3281.2,3280.7,1.06721252]
[1732311342765,0.55,3281.0,3280.7,1.06721252]
[1732311343265,0.55,3281.2,3280.7,1.06721252]
[1732311343488,0.55,3281.0,3280.7,1.06721252]
[1732311343801,0.55,3281.2,3280.7,1.06721252]
[1732311343999,0.28317459,3281.1,3280.7,1.06721252]
[1732311344200,0.55,3281.0,3280.7,1.06721252]
[1732311344864,0.55,3281.2,3280.7,1.06721252]
[1732311345165,0.55,3281.0,3280.7,1.06721252]
[1732311345499,0.55,3280.8,3280.7,1.06721252]
[1732311345702,0.55,3281.0,3280.7,1.06721252]
[1732311346007,0.55,3280.8,3280.7,1.06721252]
[1732311346209,0.55,3281.2,3280.7,1.06721252]
[1732311346417,0.55,3281.0,3280.7,1.06721252]
[1732311346762,0.55,3281.2,3280.7,1.06721252]
[1732311347040,0.55,3281.0,3280.7,1.06721252]
[1732311347246,0.28341418,3280.9,3280.7,1.06721252]
[1732311347427,0.55,3281.2,3280.7,1.06721252]
[1732311347604,0.55,3281.0,3280.7,1.06721252]
[1732311347806,0.28356808,3280.9,3280.7,1.06721252]
[1732311348030,0.55,3280.8,3280.7,1.06721252]
[1732311348510,1.0499,3281.3,3280.7,1.06721252]
[1732311348718,0.8336612,3281.2,3280.7,1.06721252]
[1732311349047,0.55,3281.0,3280.7,1.06721252]
[1732311349227,0.55,3281.2,3280.7,1.06721252]
[1732311349413,0.28370681,3281.1,3280.7,1.06721252]
[1732311349743,0.55,3280.9,3280.7,1.06721252]
[1732311350244,1.0499,3281.3,3280.7,1.06721252]
[1732311350245,0.55,3281.2,3280.7,1.06721252]
[1732311350446,0.55,3281.0,3280.7,1.06721252]
[1732311350649,1.0499,3281.3,3280.7,1.06721252]
[1732311350850,0.28377398,3281.2,3280.9,0.9661]
[1732311351015,1.0499,3281.3,3280.9,0.9661]
[1732311351216,1.0499,3281.3,3281.1,0.9661]
[1732311351823,0.9873,3282.5,3281.3,1.0294]
[1732311352022,0.9661,3281.9,3281.3,1.0294]
[1732311352223,0.28376091,3281.8,3281.3,1.0294]
[1732311352638,0.28364787,3281.7,3281.3,1.0294]
[1732311352837,0.28364787,3281.8,3281.3,1.0294]
[1732311353085,0.55,3281.6,3280.3,1.0302]
[1732311353267,0.28366595,3281.5,3280.5,1.0302]
[1732311353459,0.83366595,3281.4,3280.5,1.0302]
[1732311353683,0.55,3281.2,3280.5,1.0302]
[1732311353892,0.55,3281.2,3280.6,0.08094698]
[1732311354092,0.55,3281.4,3280.5,1.0302]
[1732311354271,0.55,3281.2,3280.5,1.0302]
[1732311354471,0.28362528,3281.1,3280.5,1.0302]
[1732311354675,0.55,3281.0,3280.5,1.0302]
[1732311355467,0.28355469,3280.9,3280.5,1.0302]
[1732311355703,0.55,3280.8,3279.2,1.0008]
[1732311355878,0.55,3280.9,3279.4,1.0347]
[1732311356075,0.28354282,3280.8,3279.6,1.0347]
[1732311356282,0.55,3280.7,3279.6,1.0347]
[1732311356475,0.55,3280.7,3279.8,1.0347]
[1732311356782,0.55,3280.9,3279.8,1.0347]
[1732311356983,0.55,3280.9,3279.9,1.11575612]
[1732311357212,0.55,3280.7,3279.9,1.11575612]
[1732311357509,0.55,3280.9,3279.9,1.11575612]
[1732311357823,0.55,3280.7,3279.9,1.11575612]
[1732311358271,0.55,3280.9,3279.9,1.11575612]
[1732311358471,0.55,3280.7,3280.1,1.0347]
[1732311358908,0.55,3280.7,3280.2,1.11579849]
[1732311360611,0.5427663,3280.7,3280.2,1.11579849]
[1732311362216,0.28387685,3280.6,3280.2,1.11579849]
[1732311362400,0.28387685,3280.5,3280.2,1.11579849]
[1732311362715,0.55,3280.5,3280.2,1.0347]
[1732311363124,0.28392237,3280.4,3280.3,0.07842793]
[1732311363409,0.28392237,3280.4,3280.2,1.0347]
[1732311363719,0.28392457,3280.3,3280.2,1.0347]
[1732311364215,0.55,3280.7,3280.2,1.0347]
[1732311364415,0.55,3280.5,3280.2,1.0347]
[1732311364614,0.28390186,3280.4,3280.2,1.0347]
[1732311364816,0.55,3280.5,3280.2,1.0347]
[1732311365677,1.054,3281.1,3280.2,1.0347]
[1732311365876,5.38,3282.3,3280.2,1.0347]
[1732311365877,0.28386799,3281.0,3280.2,1.0347]
[1732311366181,1.0266,3281.8,3280.3,1.13066786]
[1732311366406,0.28389969,3281.7,3280.3,1.0523]
[1732311366610,0.28389969,3281.6,3280.3,1.0523]
[1732311366821,0.9831,3281.4,3280.4,0.07836786]
[1732311367117,0.28389969,3281.3,3280.4,0.07836786]
[1732311367420,0.55,3281.2,3280.4,0.07836786]
[1732311367800,0.55,3281.0,3280.4,0.07836786]
[1732311368117,0.9831,3281.4,3280.4,0.07836786]
[1732311368118,0.55,3280.8,3280.5,0.9699]
[1732311368485,0.9608,3281.8,3280.6,1.04823363]
[1732311368684,0.28388628,3281.7,3280.6,1.04823363]
[1732311368907,0.28388628,3281.6,3280.6,0.9699]
[1732311369105,0.28388628,3281.5,3280.6,0.9699]
[1732311369389,0.28388628,3281.4,3280.7,1.04818475]
[1732311369907,0.9608,3282.0,3280.7,1.04818475]
[1732311370228,0.55,3281.7,3280.7,1.04818475]
[1732311370412,0.55,3281.5,3280.7,1.04818475]
[1732311370584,0.9661,3281.9,3280.8,1.0041]
[1732311370784,0.9661,3281.9,3280.8,1.08234891]
[1732311370785,0.28386782,3281.8,3280.8,1.08234891]
[1732311371004,0.28386302,3281.7,3280.8,1.08234891]
[1732311371219,0.28386302,3281.6,3280.8,1.08234891]
[1732311371421,0.9661,3281.9,3280.8,1.08234891]
[1732311371633,0.28378265,3281.8,3280.8,1.08234891]
[1732311371833,0.28378265,3281.7,3280.8,1.08234891]
[1732311372030,0.28378265,3281.6,3280.8,1.08234891]
[1732311372327,0.55,3281.4,3280.8,1.08234891]
[1732311372526,0.55,3281.7,3280.8,1.08234891]
[1732311372823,0.55,3281.5,3280.8,1.08234891]
[1732311373129,0.55,3281.8,3280.8,1.08234891]
[1732311373329,0.55,3281.6,3280.8,1.08234891]
[1732311373631,0.28372399,3281.5,3280.8,1.08234891]
[1732311373793,0.55,3281.8,3280.8,1.08234891]
[1732311373991,0.55,3281.6,3280.8,1.08234891]
[1732311374221,0.28370029,3281.5,3280.8,1.08234891]
[1732311374429,0.55,3281.4,3280.8,1.08234891]
[1732311376447,0.55,3281.7,3280.8,1.08234891]
[1732311376727,0.55,3281.5,3280.8,1.08234891]
[1732311376941,0.28368142,3281.4,3280.8,1.08234891]
[1732311377102,0.55,3281.3,3280.8,1.08234891]
[1732311377728,0.28367831,3281.2,3280.8,1.08234891]
[1732311378043,0.55,3281.3,3280.8,1.0041]
[1732311378232,0.55,3281.3,3280.9,0.07809416]
[1732311378411,0.55,3281.3,3281.0,1.0354]
[1732311378940,0.9661,3281.9,3281.2,1.0354]
[1732311378941,0.55,3281.9,3281.2,1.0354]
[1732311379351,0.28374116,3281.8,3281.3,0.07810393]
[1732311379509,0.9718,3282.3,3281.4,1.0354]
[1732311379510,1.0354,3282.1,3281.4,1.0354]
[1732311379711,0.28374116,3282.0,3281.4,1.0354]
[1732311380049,0.28374116,3281.9,3281.5,0.07810393]
[1732311380211,0.28374116,3281.8,3281.5,0.07810393]
[1732311380412,1.0354,3282.2,3281.5,0.07810393]
[1732311380739,0.55,3281.6,3281.5,0.07810393]
[1732311381123,0.55,3281.6,3281.4,1.0354]
[1732311382333,0.55,3281.7,3280.8,1.0354]
[1732311382618,0.55,3281.5,3280.9,0.07804855]
[1732311382924,0.55,3281.3,3280.9,0.07804855]
[1732311383326,1.25548716,3281.2,3280.5,1.0354]
[1732311383638,0.83368716,3281.1,3280.5,1.0354]
[1732311383842,0.55,3280.9,3280.6,0.07809253]
[1732311384950,0.9718,3281.5,3280.6,0.07809253]
[1732311385149,0.55,3281.3,3280.6,0.07809253]
[1732311385351,0.55,3281.1,3280.6,0.07809253]
[1732311385730,0.55,3281.4,3280.6,0.07809253]
[1732311385926,0.55,3281.2,3280.6,0.07809253]
[1732311386131,0.55,3281.4,3280.6,0.07809253]
[1732311386323,0.55,3281.2,3280.6,0.07809253]
[1732311386528,0.55,3281.4,3280.6,0.07809253]
[1732311386736,0.55,3281.2,3280.6,0.07809253]
[1732311387231,0.55,3281.4,3280.6,0.07809253]
[1732311387666,0.55,3281.2,3280.6,0.07809253]
[1732311388365,0.55,3281.4,3280.6,0.07809253]
[1732311388546,0.55,3281.2,3280.6,0.07809253]
[1732311388755,0.55,3281.4,3280.6,0.07809253]
[1732311389046,0.55,3281.2,3280.6,0.07809253]
[1732311389229,0.55,3281.4,3280.6,0.07809253]
[1732311389427,0.55,3281.2,3280.6,0.07809253]
[1732311389765,0.55,3281.4,3280.6,0.07809253]
[1732311389931,0.55,3281.2,3280.6,0.07809253]
[1732311390130,0.55,3281.4,3280.6,0.07809253]
[1732311390326,0.55,3281.2,3280.6,0.07809253]
[1732311390529,0.55,3281.2,3280.7,0.9684]
[1732311390761,0.55,3281.2,3280.8,0.0782261]
[1732311391132,0.9789,3281.8,3280.8,0.0782261]
[1732311391330,0.83376405,3281.7,3280.8,0.0782261]
[1732311391569,0.55,3281.5,3280.7,0.9684]
[1732311391730,0.55,3281.5,3280.9,0.0782261]
[1732311391930,0.55,3281.7,3280.7,0.9684]
[1732311392250,0.55,3281.5,3281.1,1.003]
[1732311392630,0.55,3281.3,3281.1,1.003]
[1732311393165,0.55,3281.3,3281.2,0.0782261]
[1732311393351,0.83389358,3281.3,3281.2,0.0782261]
[1732311396942,1.23612,3282.2,3281.2,0.0782261]
[1732311396943,0.55,3281.7,3281.2,0.0782261]
[1732311397163,0.55,3281.5,3281.2,0.0782261]
[1732311397365,0.55,3281.5,3281.1,1.003]
[1732311397747,0.9991,3282.0,3281.1,1.003]